[Event "Titled Tuesday Blitz August 1 Early 2023"]
[White "Nareks, Matic"]
[Black "Antonio, Jorge Carlos"]
[WhiteFideId "14629526"]
[BlackFideId "113190"]
[WhiteElo "2471"]
[BlackElo "2310"]
[Result "0-1"]
[Round "4"]
[TimeControl "180+1"]
[Date "2023.08.01"]
[WhiteClock "0:00:42"]
[BlackClock "0:01:03"]
[Board "185"]

1. e4 {[%clk 0:03:00]}  g6 {[%clk 0:03:00]} 2. d4 {[%clk 0:02:59]}  Bg7 {[%clk 0:03:00]} 3. h4 {[%clk 0:03:00]}  h5 {[%clk 0:02:56]} 4. Nc3 {[%clk 0:03:00]}  d6 {[%clk 0:02:56]} 5. Nh3 {[%clk 0:02:59]}  Bxh3 {[%clk 0:02:52]} 6. Rxh3 {[%clk 0:03:00]}  Nd7 {[%clk 0:02:49]} 7. Bg5 {[%clk 0:02:58]}  c6 {[%clk 0:02:47]} 8. Qd2 {[%clk 0:02:58]}  Ngf6 {[%clk 0:02:42]} 9. O-O-O {[%clk 0:02:56]}  O-O {[%clk 0:02:38]} 10. Be2 {[%clk 0:02:54]}  b5 {[%clk 0:02:33]} 11. f3 {[%clk 0:02:53]}  b4 {[%clk 0:02:31]} 12. Nb1 {[%clk 0:02:52]}  c5 {[%clk 0:02:28]} 13. dxc5 {[%clk 0:02:41]}  Nxc5 {[%clk 0:02:25]} 14. Qxb4 {[%clk 0:02:20]}  Rb8 {[%clk 0:02:22]} 15. Qa3 {[%clk 0:02:20]}  Qb6 {[%clk 0:02:07]} 16. Nc3 {[%clk 0:02:17]}  Rfc8 {[%clk 0:02:02]} 17. Be3 {[%clk 0:01:57]}  Nb3+ {[%clk 0:01:56]} 18. axb3 {[%clk 0:01:50]}  Qxe3+ {[%clk 0:01:55]} 19. Kb1 {[%clk 0:01:43]}  Rxc3 {[%clk 0:01:50]} 20. bxc3 {[%clk 0:01:44]}  Qxe2 {[%clk 0:01:47]} 21. Rhh1 {[%clk 0:01:44]}  Qxg2 {[%clk 0:01:39]} 22. Qxa7 {[%clk 0:01:42]}  Rc8 {[%clk 0:01:31]} 23. Qe3 {[%clk 0:01:34]}  Nd7 {[%clk 0:01:26]} 24. c4 {[%clk 0:01:23]}  Qg3 {[%clk 0:01:21]} 25. Rd5 {[%clk 0:01:14]}  Ne5 {[%clk 0:01:15]} 26. Rf1 {[%clk 0:01:12]}  Qxh4 {[%clk 0:01:14]} 27. f4 {[%clk 0:01:11]}  Ng4 {[%clk 0:01:12]} 28. Qa7 {[%clk 0:01:10]}  Qf6 {[%clk 0:01:11]} 29. Qa2 {[%clk 0:00:54]}  Ne3 {[%clk 0:01:10]} 30. Rf3 {[%clk 0:00:48]}  Nxd5 {[%clk 0:01:09]} 31. cxd5 {[%clk 0:00:49]}  Qd4 {[%clk 0:01:04]} 32. Kc1 {[%clk 0:00:42]}  Qxe4 {[%clk 0:01:03]} 0-1


[Site "https://www.chess.com"]

[Event "Titled Tuesday Blitz August 1 Early 2023"]
[White "Ziatdinov, Raset"]
[Black "MFatigue"]
[WhiteFideId "2015323"]
[WhiteElo "2306"]
[BlackElo "2470"]
[Result "0-1"]
[Round "4"]
[TimeControl "180+1"]
[Date "2023.08.01"]
[WhiteClock "0:00:06"]
[BlackClock "0:00:04"]
[Board "186"]

1. e4 {[%clk 0:03:00]}  e6 {[%clk 0:03:00]} 2. d3 {[%clk 0:03:01]}  d5 {[%clk 0:03:00]} 3. Nd2 {[%clk 0:02:59]}  c5 {[%clk 0:03:01]} 4. g3 {[%clk 0:02:57]}  Nc6 {[%clk 0:03:01]} 5. Bg2 {[%clk 0:02:58]}  Nge7 {[%clk 0:03:02]} 6. f4 {[%clk 0:02:57]}  g6 {[%clk 0:03:02]} 7. Ngf3 {[%clk 0:02:58]}  Bg7 {[%clk 0:03:03]} 8. O-O {[%clk 0:02:58]}  O-O {[%clk 0:03:03]} 9. e5 {[%clk 0:02:48]}  f6 {[%clk 0:03:00]} 10. exf6 {[%clk 0:02:47]}  Rxf6 {[%clk 0:03:01]} 11. Nb3 {[%clk 0:02:43]}  b6 {[%clk 0:03:00]} 12. c3 {[%clk 0:02:35]}  a5 {[%clk 0:02:54]} 13. d4 {[%clk 0:02:36]}  a4 {[%clk 0:02:46]} 14. Nbd2 {[%clk 0:02:35]}  Nf5 {[%clk 0:02:46]} 15. Re1 {[%clk 0:02:22]}  cxd4 {[%clk 0:02:36]} 16. cxd4 {[%clk 0:02:22]}  Nfxd4 {[%clk 0:02:35]} 17. Nxd4 {[%clk 0:02:22]}  Nxd4 {[%clk 0:02:36]} 18. Nc4 {[%clk 0:02:16]}  Rf8 {[%clk 0:02:22]} 19. Ne5 {[%clk 0:02:12]}  Nf5 {[%clk 0:02:15]} 20. Bd2 {[%clk 0:01:55]}  Re8 {[%clk 0:02:09]} 21. Bb4 {[%clk 0:01:51]}  Bb7 {[%clk 0:02:02]} 22. Rc1 {[%clk 0:01:46]}  Nd6 {[%clk 0:01:50]} 23. b3 {[%clk 0:01:08]}  axb3 {[%clk 0:01:48]} 24. axb3 {[%clk 0:01:06]}  Ra2 {[%clk 0:01:41]} 25. Qg4 {[%clk 0:01:00]}  Bxe5 {[%clk 0:01:16]} 26. Rxe5 {[%clk 0:00:56]}  Nf5 {[%clk 0:01:16]} 27. Rce1 {[%clk 0:00:54]}  Qd7 {[%clk 0:01:16]} 28. h4 {[%clk 0:00:41]}  d4 {[%clk 0:01:17]} 29. Bxb7 {[%clk 0:00:38]}  Qxb7 {[%clk 0:01:18]} 30. R1e2 {[%clk 0:00:31]}  Ra1+ {[%clk 0:01:09]} 31. Re1 {[%clk 0:00:31]}  Rxe1+ {[%clk 0:00:55]} 32. Rxe1 {[%clk 0:00:31]}  Ne3 {[%clk 0:00:53]} 33. Qe2 {[%clk 0:00:30]}  Rc8 {[%clk 0:00:48]} 34. Bd2 {[%clk 0:00:26]}  Rc2 {[%clk 0:00:47]} 35. Rc1 {[%clk 0:00:23]}  Ra2 {[%clk 0:00:46]} 36. h5 {[%clk 0:00:13]}  Kg7 {[%clk 0:00:30]} 37. hxg6 {[%clk 0:00:10]}  hxg6 {[%clk 0:00:31]} 38. f5 {[%clk 0:00:09]}  Nxf5 {[%clk 0:00:22]} 39. Qh2 {[%clk 0:00:10]}  Ne3 {[%clk 0:00:10]} 40. g4 {[%clk 0:00:09]}  Ra7 {[%clk 0:00:06]} 41. Qe5+ {[%clk 0:00:08]}  Kf7 {[%clk 0:00:05]} 42. Qf4+ {[%clk 0:00:08]}  Kg7 {[%clk 0:00:05]} 43. Bxe3 {[%clk 0:00:08]}  dxe3 {[%clk 0:00:05]} 44. Qxe3 {[%clk 0:00:09]}  Qf7 {[%clk 0:00:05]} 45. Qxb6 {[%clk 0:00:09]}  Rb7 {[%clk 0:00:04]} 46. Qd4+ {[%clk 0:00:09]}  Qf6 {[%clk 0:00:04]} 47. Qxf6+ {[%clk 0:00:09]}  Kxf6 {[%clk 0:00:05]} 48. Rc3 {[%clk 0:00:09]}  Kg5 {[%clk 0:00:05]} 49. Kf2 {[%clk 0:00:08]}  Kxg4 {[%clk 0:00:05]} 50. Ke2 {[%clk 0:00:09]}  Kf5 {[%clk 0:00:04]} 51. Kd3 {[%clk 0:00:09]}  e5 {[%clk 0:00:05]} 52. Kc2 {[%clk 0:00:05]}  g5 {[%clk 0:00:05]} 53. Rf3+ {[%clk 0:00:05]}  Ke4 {[%clk 0:00:05]} 54. Rg3 {[%clk 0:00:05]}  Kf4 {[%clk 0:00:05]} 55. Rg1 {[%clk 0:00:05]}  g4 {[%clk 0:00:06]} 56. Kc3 {[%clk 0:00:06]}  e4 {[%clk 0:00:05]} 57. b4 {[%clk 0:00:07]}  g3 {[%clk 0:00:04]} 58. Kc4 {[%clk 0:00:08]}  Kf3 {[%clk 0:00:04]} 59. Kc5 {[%clk 0:00:08]}  g2 {[%clk 0:00:04]} 60. Kc6 {[%clk 0:00:06]}  Rxb4 {[%clk 0:00:04]} 0-1


[Site "https://www.chess.com"]

[Event "Titled Tuesday Blitz August 1 Early 2023"]
[White "D`Arruda, Ricardo D."]
[Black "Miguelitro69"]
[WhiteFideId "100692"]
[WhiteElo "2469"]
[BlackElo "2297"]
[Result "1-0"]
[Round "4"]
[TimeControl "180+1"]
[Date "2023.08.01"]
[WhiteClock "0:00:42"]
[BlackClock "0:00:14"]
[Board "187"]

1. Nf3 {[%clk 0:03:00]}  g6 {[%clk 0:02:58]} 2. d4 {[%clk 0:02:59]}  Bg7 {[%clk 0:02:58]} 3. e4 {[%clk 0:02:59]}  d6 {[%clk 0:02:58]} 4. Nc3 {[%clk 0:02:59]}  Nf6 {[%clk 0:02:59]} 5. Bg5 {[%clk 0:02:59]}  h6 {[%clk 0:02:58]} 6. Bh4 {[%clk 0:02:58]}  O-O {[%clk 0:02:57]} 7. Qd2 {[%clk 0:02:58]}  Kh7 {[%clk 0:02:55]} 8. O-O-O {[%clk 0:02:57]}  a6 {[%clk 0:02:49]} 9. e5 {[%clk 0:02:56]}  dxe5 {[%clk 0:02:45]} 10. dxe5 {[%clk 0:02:57]}  Qxd2+ {[%clk 0:02:45]} 11. Rxd2 {[%clk 0:02:56]}  Ng8 {[%clk 0:02:45]} 12. Nd5 {[%clk 0:02:55]}  Nc6 {[%clk 0:02:35]} 13. Nxc7 {[%clk 0:02:49]}  Rb8 {[%clk 0:02:34]} 14. e6 {[%clk 0:02:31]}  f5 {[%clk 0:02:23]} 15. Bd3 {[%clk 0:02:18]}  Kh8 {[%clk 0:02:21]} 16. h3 {[%clk 0:01:55]}  g5 {[%clk 0:02:11]} 17. Bxg5 {[%clk 0:01:52]}  hxg5 {[%clk 0:02:09]} 18. Nxg5 {[%clk 0:01:53]}  Nh6 {[%clk 0:01:50]} 19. g4 {[%clk 0:01:48]}  Be5 {[%clk 0:01:48]} 20. Nd5 {[%clk 0:01:43]}  f4 {[%clk 0:00:44]} 21. f3 {[%clk 0:01:30]}  Bf6 {[%clk 0:00:30]} 22. h4 {[%clk 0:01:29]}  Kg7 {[%clk 0:00:25]} 23. Nxf4 {[%clk 0:01:18]}  Ne5 {[%clk 0:00:17]} 24. Nh5+ {[%clk 0:01:15]}  Kh8 {[%clk 0:00:17]} 25. Be4 {[%clk 0:01:05]}  Nexg4 {[%clk 0:00:16]} 26. fxg4 {[%clk 0:01:03]}  Nxg4 {[%clk 0:00:17]} 27. Nxf6 {[%clk 0:00:59]}  exf6 {[%clk 0:00:16]} 28. Nf7+ {[%clk 0:00:56]}  Kg7 {[%clk 0:00:17]} 29. Bf5 {[%clk 0:00:53]}  Ne5 {[%clk 0:00:16]} 30. Rg1+ {[%clk 0:00:49]}  Ng6 {[%clk 0:00:13]} 31. Rxg6+ {[%clk 0:00:48]}  Kh7 {[%clk 0:00:14]} 32. Rh6+ {[%clk 0:00:41]}  Kg7 {[%clk 0:00:14]} 33. Rg2# {[%clk 0:00:42]} 1-0


[Site "https://www.chess.com"]

[Event "Titled Tuesday Blitz August 1 Early 2023"]
[White "Fernandez Siles, Luis"]
[Black "Ronka, Erik"]
[WhiteFideId "2209420"]
[BlackFideId "505080"]
[WhiteElo "2294"]
[BlackElo "2467"]
[Result "0-1"]
[Round "4"]
[TimeControl "180+1"]
[Date "2023.08.01"]
[WhiteClock "0:00:00"]
[BlackClock "0:00:07"]
[Board "188"]

1. e4 {[%clk 0:03:00]}  c5 {[%clk 0:02:59]} 2. Nf3 {[%clk 0:02:59]}  d6 {[%clk 0:02:44]} 3. Bb5+ {[%clk 0:02:58]}  Bd7 {[%clk 0:02:43]} 4. Bxd7+ {[%clk 0:02:57]}  Qxd7 {[%clk 0:02:44]} 5. O-O {[%clk 0:02:55]}  Nc6 {[%clk 0:02:42]} 6. c3 {[%clk 0:02:54]}  Nf6 {[%clk 0:02:42]} 7. Re1 {[%clk 0:02:53]}  e6 {[%clk 0:02:40]} 8. d4 {[%clk 0:02:53]}  cxd4 {[%clk 0:02:41]} 9. cxd4 {[%clk 0:02:53]}  d5 {[%clk 0:02:42]} 10. e5 {[%clk 0:02:54]}  Ne4 {[%clk 0:02:42]} 11. Nbd2 {[%clk 0:02:54]}  Nxd2 {[%clk 0:02:41]} 12. Bxd2 {[%clk 0:02:55]}  Be7 {[%clk 0:02:39]} 13. Rc1 {[%clk 0:02:53]}  O-O {[%clk 0:02:39]} 14. Rc3 {[%clk 0:02:51]}  Rac8 {[%clk 0:02:28]} 15. Rd3 {[%clk 0:02:25]}  Rc7 {[%clk 0:02:21]} 16. Ng5 {[%clk 0:02:12]}  Rfc8 {[%clk 0:01:55]} 17. Qh5 {[%clk 0:01:54]}  Bxg5 {[%clk 0:01:55]} 18. Bxg5 {[%clk 0:01:55]}  Ne7 {[%clk 0:01:47]} 19. Rh3 {[%clk 0:01:47]}  h6 {[%clk 0:01:47]} 20. Bxh6 {[%clk 0:01:46]}  gxh6 {[%clk 0:01:48]} 21. Qxh6 {[%clk 0:01:45]}  Ng6 {[%clk 0:01:29]} 22. Rg3 {[%clk 0:01:22]}  Qe7 {[%clk 0:00:19]} 23. h4 {[%clk 0:01:19]}  Qf8 {[%clk 0:00:20]} 24. Qg5 {[%clk 0:01:01]}  Kh7 {[%clk 0:00:20]} 25. Qf6 {[%clk 0:00:14]}  Rc1 {[%clk 0:00:17]} 26. Rxc1 {[%clk 0:00:12]}  Rxc1+ {[%clk 0:00:18]} 27. Kh2 {[%clk 0:00:12]}  Qg7 {[%clk 0:00:18]} 28. Qxg7+ {[%clk 0:00:12]}  Kxg7 {[%clk 0:00:17]} 29. h5 {[%clk 0:00:13]}  Rc2 {[%clk 0:00:18]} 30. hxg6 {[%clk 0:00:13]}  Rxb2 {[%clk 0:00:18]} 31. gxf7+ {[%clk 0:00:13]}  Kxf7 {[%clk 0:00:19]} 32. Ra3 {[%clk 0:00:11]}  Rxf2 {[%clk 0:00:14]} 33. Rxa7 {[%clk 0:00:10]}  Kg6 {[%clk 0:00:15]} 34. Rxb7 {[%clk 0:00:10]}  Rxa2 {[%clk 0:00:15]} 35. Rb6 {[%clk 0:00:08]}  Kf5 {[%clk 0:00:15]} 36. Rb3 {[%clk 0:00:03]}  Rd2 {[%clk 0:00:13]} 37. Rf3+ {[%clk 0:00:02]}  Ke4 {[%clk 0:00:07]} 38. Rf6 {[%clk 0:00:02]}  Kxd4 {[%clk 0:00:06]} 39. Rxe6 {[%clk 0:00:00]}  Re2 {[%clk 0:00:07]} 0-1


[Site "https://www.chess.com"]

[Event "Titled Tuesday Blitz August 1 Early 2023"]
[White "Xavier_mompel"]
[Black "Garcia Almaguer, Juan Manuel"]
[BlackFideId "5110491"]
[WhiteElo "2286"]
[BlackElo "2466"]
[Result "1/2-1/2"]
[Round "4"]
[TimeControl "180+1"]
[Date "2023.08.01"]
[WhiteClock "0:01:59"]
[BlackClock "0:02:17"]
[Board "189"]

1. e4 {[%clk 0:03:00]}  e5 {[%clk 0:02:59]} 2. Nf3 {[%clk 0:03:01]}  Nc6 {[%clk 0:03:00]} 3. Bb5 {[%clk 0:03:00]}  a6 {[%clk 0:02:59]} 4. Ba4 {[%clk 0:03:00]}  Nf6 {[%clk 0:03:00]} 5. O-O {[%clk 0:03:00]}  Be7 {[%clk 0:03:00]} 6. Re1 {[%clk 0:02:55]}  b5 {[%clk 0:03:00]} 7. Bb3 {[%clk 0:02:55]}  O-O {[%clk 0:03:00]} 8. a4 {[%clk 0:02:55]}  Bb7 {[%clk 0:03:00]} 9. d3 {[%clk 0:02:45]}  d6 {[%clk 0:02:56]} 10. Bd2 {[%clk 0:02:40]}  Nd7 {[%clk 0:02:56]} 11. axb5 {[%clk 0:02:27]}  axb5 {[%clk 0:02:56]} 12. Rxa8 {[%clk 0:02:28]}  Qxa8 {[%clk 0:02:56]} 13. Nc3 {[%clk 0:02:28]}  Qa6 {[%clk 0:02:46]} 14. Nd5 {[%clk 0:02:25]}  Nc5 {[%clk 0:02:46]} 15. Nxc7 {[%clk 0:02:21]}  Qb6 {[%clk 0:02:32]} 16. Nd5 {[%clk 0:02:20]}  Qa6 {[%clk 0:02:29]} 17. Nc7 {[%clk 0:01:59]}  Qb6 {[%clk 0:02:26]} 18. Nd5 {[%clk 0:02:00]}  Qa6 {[%clk 0:02:17]} 19. Nc7 {[%clk 0:01:59]} 1/2-1/2


[Site "https://www.chess.com"]

[Event "Titled Tuesday Blitz August 1 Early 2023"]
[White "Perske, Thore"]
[Black "Tqebuchava, Zurab"]
[WhiteFideId "12902195"]
[BlackFideId "13601113"]
[WhiteElo "2459"]
[BlackElo "2254"]
[Result "1-0"]
[Round "4"]
[TimeControl "180+1"]
[Date "2023.08.01"]
[WhiteClock "0:00:08"]
[BlackClock "0:00:00"]
[Board "192"]

1. e4 {[%clk 0:03:00]}  d6 {[%clk 0:02:59]} 2. d4 {[%clk 0:03:01]}  Nf6 {[%clk 0:02:59]} 3. Nc3 {[%clk 0:03:01]}  Nbd7 {[%clk 0:02:59]} 4. Nge2 {[%clk 0:03:02]}  e5 {[%clk 0:02:58]} 5. g3 {[%clk 0:03:02]}  Be7 {[%clk 0:02:58]} 6. Bg2 {[%clk 0:03:03]}  O-O {[%clk 0:02:58]} 7. O-O {[%clk 0:03:03]}  exd4 {[%clk 0:02:47]} 8. Nxd4 {[%clk 0:03:04]}  Re8 {[%clk 0:02:47]} 9. Re1 {[%clk 0:03:04]}  Bf8 {[%clk 0:02:47]} 10. h3 {[%clk 0:03:04]}  a5 {[%clk 0:02:44]} 11. a4 {[%clk 0:03:04]}  Nc5 {[%clk 0:02:44]} 12. b3 {[%clk 0:02:52]}  g6 {[%clk 0:02:29]} 13. Bb2 {[%clk 0:02:52]}  Bg7 {[%clk 0:02:28]} 14. Qd2 {[%clk 0:02:52]}  h5 {[%clk 0:02:21]} 15. Rad1 {[%clk 0:02:51]}  Kh7 {[%clk 0:02:12]} 16. Ndb5 {[%clk 0:02:44]}  Bd7 {[%clk 0:01:53]} 17. Ba3 {[%clk 0:02:38]}  Bxb5 {[%clk 0:01:45]} 18. Nxb5 {[%clk 0:02:38]}  Ncxe4 {[%clk 0:01:35]} 19. Bxe4 {[%clk 0:01:28]}  Nxe4 {[%clk 0:01:33]} 20. Qf4 {[%clk 0:01:28]}  f5 {[%clk 0:00:47]} 21. c4 {[%clk 0:01:27]}  b6 {[%clk 0:00:27]} 22. h4 {[%clk 0:01:22]}  Qd7 {[%clk 0:00:25]} 23. Qf3 {[%clk 0:01:14]}  Re6 {[%clk 0:00:21]} 24. Bc1 {[%clk 0:01:08]}  Rae8 {[%clk 0:00:17]} 25. Kg2 {[%clk 0:01:08]}  Nf6 {[%clk 0:00:12]} 26. Rxe6 {[%clk 0:01:05]}  Rxe6 {[%clk 0:00:11]} 27. Bg5 {[%clk 0:01:04]}  Ne4 {[%clk 0:00:10]} 28. Bf4 {[%clk 0:01:01]}  Nf6 {[%clk 0:00:08]} 29. Qb7 {[%clk 0:00:57]}  Ne8 {[%clk 0:00:05]} 30. Rd3 {[%clk 0:00:51]}  Re7 {[%clk 0:00:05]} 31. Qa8 {[%clk 0:00:46]}  Qe6 {[%clk 0:00:04]} 32. Qd5 {[%clk 0:00:40]}  Qxd5+ {[%clk 0:00:04]} 33. cxd5 {[%clk 0:00:41]}  Rd7 {[%clk 0:00:04]} 34. Bg5 {[%clk 0:00:37]}  Nf6 {[%clk 0:00:03]} 35. Bxf6 {[%clk 0:00:37]}  Bxf6 {[%clk 0:00:03]} 36. Re3 {[%clk 0:00:38]}  Kg7 {[%clk 0:00:04]} 37. f4 {[%clk 0:00:36]}  Kf7 {[%clk 0:00:04]} 38. Kf3 {[%clk 0:00:34]}  Bd8 {[%clk 0:00:04]} 39. Ke2 {[%clk 0:00:32]}  Re7 {[%clk 0:00:04]} 40. Kd3 {[%clk 0:00:32]}  Rxe3+ {[%clk 0:00:04]} 41. Kxe3 {[%clk 0:00:33]}  Kf6 {[%clk 0:00:05]} 42. Kd4 {[%clk 0:00:33]}  Kf7 {[%clk 0:00:05]} 43. Kc4 {[%clk 0:00:33]}  Ke7 {[%clk 0:00:05]} 44. Nd4 {[%clk 0:00:25]}  Kf7 {[%clk 0:00:05]} 45. Kb5 {[%clk 0:00:25]}  Ke7 {[%clk 0:00:05]} 46. Kc6 {[%clk 0:00:24]}  Ke8 {[%clk 0:00:04]} 47. Ne6 {[%clk 0:00:24]}  Bf6 {[%clk 0:00:03]} 48. Kxc7 {[%clk 0:00:22]}  Bc3 {[%clk 0:00:03]} 49. Kxb6 {[%clk 0:00:19]}  Be1 {[%clk 0:00:03]} 50. Kb5 {[%clk 0:00:17]}  Bxg3 {[%clk 0:00:03]} 51. Kxa5 {[%clk 0:00:18]}  Bxh4 {[%clk 0:00:03]} 52. Kb6 {[%clk 0:00:12]}  Bf2+ {[%clk 0:00:03]} 53. Kc6 {[%clk 0:00:12]}  h4 {[%clk 0:00:03]} 54. Ng5 {[%clk 0:00:12]}  Be3 {[%clk 0:00:03]} 55. Nh3 {[%clk 0:00:12]}  g5 {[%clk 0:00:02]} 56. fxg5 {[%clk 0:00:08]}  f4 {[%clk 0:00:02]} 57. a5 {[%clk 0:00:08]}  f3 {[%clk 0:00:02]} 58. a6 {[%clk 0:00:06]}  f2 {[%clk 0:00:02]} 59. Nxf2 {[%clk 0:00:06]}  Bxf2 {[%clk 0:00:03]} 60. b4 {[%clk 0:00:07]}  h3 {[%clk 0:00:03]} 61. b5 {[%clk 0:00:07]}  h2 {[%clk 0:00:03]} 62. b6 {[%clk 0:00:08]}  h1=Q {[%clk 0:00:03]} 63. a7 {[%clk 0:00:09]}  Qc1+ {[%clk 0:00:02]} 64. Kb7 {[%clk 0:00:08]}  Qb2 {[%clk 0:00:00]} 65. a8=Q+ {[%clk 0:00:08]} 1-0


[Site "https://www.chess.com"]

[Event "Titled Tuesday Blitz August 1 Early 2023"]
[White "Daniel_Salinas"]
[Black "Romero Pallares, Daniel"]
[BlackFideId "32025637"]
[WhiteElo "2249"]
[BlackElo "2459"]
[Result "0-1"]
[Round "4"]
[TimeControl "180+1"]
[Date "2023.08.01"]
[WhiteClock "0:00:04"]
[BlackClock "0:00:21"]
[Board "193"]

1. d4 {[%clk 0:03:00]}  g6 {[%clk 0:02:56]} 2. c4 {[%clk 0:02:57]}  Bg7 {[%clk 0:02:55]} 3. Nf3 {[%clk 0:02:55]}  d6 {[%clk 0:02:56]} 4. g3 {[%clk 0:02:55]}  Nf6 {[%clk 0:02:52]} 5. Bg2 {[%clk 0:02:55]}  O-O {[%clk 0:02:53]} 6. O-O {[%clk 0:02:56]}  c6 {[%clk 0:02:53]} 7. Nc3 {[%clk 0:02:55]}  Bf5 {[%clk 0:02:53]} 8. Qb3 {[%clk 0:02:31]}  Qb6 {[%clk 0:02:48]} 9. Bf4 {[%clk 0:02:14]}  Na6 {[%clk 0:02:09]} 10. Rfe1 {[%clk 0:02:05]}  Qxb3 {[%clk 0:01:40]} 11. axb3 {[%clk 0:02:06]}  Nb4 {[%clk 0:01:41]} 12. e4 {[%clk 0:01:00]}  Bg4 {[%clk 0:01:40]} 13. Rad1 {[%clk 0:00:57]}  Bxf3 {[%clk 0:01:34]} 14. Bxf3 {[%clk 0:00:58]}  Nd7 {[%clk 0:01:26]} 15. Rd2 {[%clk 0:00:38]}  Rfd8 {[%clk 0:01:19]} 16. h4 {[%clk 0:00:28]}  e5 {[%clk 0:01:18]} 17. dxe5 {[%clk 0:00:17]}  dxe5 {[%clk 0:01:18]} 18. Be3 {[%clk 0:00:16]}  Nf8 {[%clk 0:00:56]} 19. Bc5 {[%clk 0:00:15]}  Rxd2 {[%clk 0:00:52]} 20. Bxb4 {[%clk 0:00:12]}  Rxb2 {[%clk 0:00:52]} 21. Bd6 {[%clk 0:00:07]}  Rxb3 {[%clk 0:00:51]} 22. Na4 {[%clk 0:00:08]}  Ne6 {[%clk 0:00:50]} 23. Bg4 {[%clk 0:00:07]}  Rd8 {[%clk 0:00:34]} 24. Be7 {[%clk 0:00:06]}  Rd7 {[%clk 0:00:29]} 25. Bxe6 {[%clk 0:00:03]}  Rxe7 {[%clk 0:00:30]} 26. Bh3 {[%clk 0:00:03]}  Rd3 {[%clk 0:00:24]} 27. Nc5 {[%clk 0:00:02]}  Rd8 {[%clk 0:00:23]} 28. Rb1 {[%clk 0:00:02]}  b6 {[%clk 0:00:23]} 29. Nb3 {[%clk 0:00:03]}  Bf8 {[%clk 0:00:24]} 30. c5 {[%clk 0:00:03]}  b5 {[%clk 0:00:24]} 31. f4 {[%clk 0:00:04]}  Bg7 {[%clk 0:00:24]} 32. f5 {[%clk 0:00:04]}  Rc7 {[%clk 0:00:19]} 33. Na5 {[%clk 0:00:05]}  Bf8 {[%clk 0:00:19]} 34. fxg6 {[%clk 0:00:04]}  Bxc5+ {[%clk 0:00:19]} 35. Kg2 {[%clk 0:00:05]}  hxg6 {[%clk 0:00:20]} 36. h5 {[%clk 0:00:05]}  Kg7 {[%clk 0:00:20]} 37. hxg6 {[%clk 0:00:05]}  fxg6 {[%clk 0:00:21]} 38. Rf1 {[%clk 0:00:05]}  Bb6 {[%clk 0:00:21]} 39. Nb3 {[%clk 0:00:05]}  c5 {[%clk 0:00:21]} 40. Be6 {[%clk 0:00:05]}  c4 {[%clk 0:00:22]} 41. Nc1 {[%clk 0:00:04]}  b4 {[%clk 0:00:21]} 0-1


[Site "https://www.chess.com"]

[Event "Titled Tuesday Blitz August 1 Early 2023"]
[White "Quirke, Jeffrey"]
[Black "Willy, Stephen"]
[WhiteFideId "2013029"]
[BlackFideId "30981468"]
[WhiteElo "2242"]
[BlackElo "2452"]
[Result "1-0"]
[Round "4"]
[TimeControl "180+1"]
[Date "2023.08.01"]
[WhiteClock "0:00:02"]
[BlackClock "0:00:00"]
[Board "196"]

1. c4 {[%clk 0:03:00]}  d6 {[%clk 0:02:53]} 2. g3 {[%clk 0:02:59]}  e5 {[%clk 0:02:52]} 3. Bg2 {[%clk 0:02:59]}  g6 {[%clk 0:02:52]} 4. Nc3 {[%clk 0:02:59]}  Bg7 {[%clk 0:02:52]} 5. Nf3 {[%clk 0:03:00]}  Nc6 {[%clk 0:02:51]} 6. O-O {[%clk 0:03:00]}  g5 {[%clk 0:02:44]} 7. d3 {[%clk 0:02:59]}  g4 {[%clk 0:02:40]} 8. Nd2 {[%clk 0:02:53]}  h5 {[%clk 0:02:39]} 9. Rb1 {[%clk 0:02:47]}  h4 {[%clk 0:02:32]} 10. Nd5 {[%clk 0:02:36]}  a5 {[%clk 0:02:25]} 11. a3 {[%clk 0:02:35]}  Nge7 {[%clk 0:02:11]} 12. b4 {[%clk 0:02:34]}  Ng6 {[%clk 0:02:00]} 13. b5 {[%clk 0:02:26]}  Nce7 {[%clk 0:01:56]} 14. Ne4 {[%clk 0:02:23]}  Nxd5 {[%clk 0:01:50]} 15. cxd5 {[%clk 0:02:22]}  Rh5 {[%clk 0:01:46]} 16. Bd2 {[%clk 0:02:00]}  f5 {[%clk 0:01:44]} 17. Nc3 {[%clk 0:02:00]}  f4 {[%clk 0:01:36]} 18. b6 {[%clk 0:01:57]}  cxb6 {[%clk 0:01:17]} 19. Qb3 {[%clk 0:01:43]}  Ra6 {[%clk 0:01:11]} 20. Ne4 {[%clk 0:01:27]}  Bf5 {[%clk 0:01:01]} 21. Rfc1 {[%clk 0:01:25]}  hxg3 {[%clk 0:00:43]} 22. hxg3 {[%clk 0:01:20]}  Bh6 {[%clk 0:00:38]} 23. Qc2 {[%clk 0:01:06]}  Ra8 {[%clk 0:00:24]} 24. Qc7 {[%clk 0:00:56]}  Bf8 {[%clk 0:00:12]} 25. Qxd8+ {[%clk 0:00:51]}  Kxd8 {[%clk 0:00:12]} 26. Rxb6 {[%clk 0:00:50]}  Kd7 {[%clk 0:00:03]} 27. Rxb7+ {[%clk 0:00:48]}  Kd8 {[%clk 0:00:03]} 28. Rcc7 {[%clk 0:00:42]}  Be7 {[%clk 0:00:02]} 29. Rc6 {[%clk 0:00:39]}  Rc8 {[%clk 0:00:02]} 30. Nxd6 {[%clk 0:00:33]}  Rxc6 {[%clk 0:00:02]} 31. Nxf5 {[%clk 0:00:17]}  Rc8 {[%clk 0:00:01]} 32. Nxe7 {[%clk 0:00:08]}  Nxe7 {[%clk 0:00:02]} 33. d6 {[%clk 0:00:09]}  Nc6 {[%clk 0:00:02]} 34. gxf4 {[%clk 0:00:03]}  Nd4 {[%clk 0:00:02]} 35. fxe5 {[%clk 0:00:02]}  Nxe2+ {[%clk 0:00:02]} 36. Kf1 {[%clk 0:00:03]}  Nd4 {[%clk 0:00:02]} 37. Bd5 {[%clk 0:00:02]}  Nc6 {[%clk 0:00:00]} 38. e6 {[%clk 0:00:02]} 1-0


[Site "https://www.chess.com"]

[Event "Titled Tuesday Blitz August 1 Early 2023"]
[White "TomLiu777"]
[Black "Vafin, Ayrat"]
[BlackFideId "4146530"]
[WhiteElo "2451"]
[BlackElo "2232"]
[Result "1-0"]
[Round "4"]
[TimeControl "180+1"]
[Date "2023.08.01"]
[WhiteClock "0:02:13"]
[BlackClock "0:01:22"]
[Board "197"]

1. c4 {[%clk 0:03:00]}  e6 {[%clk 0:02:59]} 2. Nc3 {[%clk 0:03:00]}  d5 {[%clk 0:03:00]} 3. d4 {[%clk 0:02:55]}  Be7 {[%clk 0:02:59]} 4. cxd5 {[%clk 0:02:54]}  exd5 {[%clk 0:02:59]} 5. Bf4 {[%clk 0:02:55]}  c6 {[%clk 0:03:00]} 6. e3 {[%clk 0:02:54]}  Bf5 {[%clk 0:03:00]} 7. Nge2 {[%clk 0:02:52]}  Nf6 {[%clk 0:02:57]} 8. Ng3 {[%clk 0:02:52]}  Bg6 {[%clk 0:02:58]} 9. h4 {[%clk 0:02:52]}  h5 {[%clk 0:02:58]} 10. Bd3 {[%clk 0:02:53]}  Bxd3 {[%clk 0:02:58]} 11. Qxd3 {[%clk 0:02:53]}  g6 {[%clk 0:02:59]} 12. O-O-O {[%clk 0:02:48]}  Nbd7 {[%clk 0:02:56]} 13. e4 {[%clk 0:02:48]}  dxe4 {[%clk 0:02:55]} 14. Ngxe4 {[%clk 0:02:48]}  Nxe4 {[%clk 0:02:56]} 15. Nxe4 {[%clk 0:02:47]}  Nf6 {[%clk 0:02:46]} 16. Nxf6+ {[%clk 0:02:42]}  Bxf6 {[%clk 0:02:46]} 17. Qa3 {[%clk 0:02:25]}  Qd5 {[%clk 0:02:23]} 18. Rhe1+ {[%clk 0:02:22]}  Kd7 {[%clk 0:02:12]} 19. Be5 {[%clk 0:02:14]}  Bxe5 {[%clk 0:01:22]} 20. dxe5 {[%clk 0:02:13]} 1-0


[Site "https://www.chess.com"]